Workbook

Sheet Overview & Manual
A1: SARA Lieferantenselbstauskunft/Risikoanalyse Supplier Self Assessement / Riskanalysis
A3: Kübler
A4: Verantworlicher QM responsible QM:
A5: Verantworllicher SP responsible PUR:
A6: Datum Date :
A8: Supplier
A9: Lieferant Name Company Name:
A10: Bearbeitet von Completed by:
A11: Datum Date:
A14: Anleitung:
A15: Sie finden in den folgenden Tabellenblätter verschiedene Kategorien. Füllen Sie die Tabelle Allgemeine Auskünfte (General Information) aus. Bitte beantworten Sie die Fragen zur Selbstauskunft (SA) in den Tabellenblätter: Quality, Management, Costs&Logistic, Technic, Communication und Environment&Social aus. Alle Eingabefelder für den Lieferanten sind blau hinterlegt.
A21: Manual:
A22: In the different excel sheets you will find different categories. Please fill in the sheet general information and answer the questions of the sheets: Quality, Management, Costs&Logistic, Technic, Communication und Environment&Social. The fields for supplier entries are marked blue.

Sheet General Information
A1: Lieferantenselbstauskunft Supplier Self Assessement
A3: Firma Company Name | C3: Supplier Name
A4: Anschrift Address | C4: Adress
A5: Homepage | C5: Website
A6: Gründungsjahr Year of founding | C6: Founding year/legal from
A7: Rechtsform Legal form
A8: Bankdaten: BIC,IBAN Bank data swift code | C8: Bank data: BIC, IBAN
A9: Kreditreformauskunft beigefügt Credit worthiness information attached | C9: Bank data: BIC, IBAN
A10: Deckungssumme Produkthaftpflichtvers. product liability insurance cover total | C10: Bank data: BIC, IBAN
A11: Umsatzsteuer Id.Nr. VAT number | C11: Turnover tax ID number
A12: Produktionsstandorte Location of production | C12: Production location | D12: Land/Country: | F12: Ort/City: | I12: Mitarbeiter/ Employees:
A13: Vertriebsstandorte Location of sales dept. | C13: Sales location | D13: Land/Country: | F13: Ort/City: | I13: Mitarbeiter/ Employees:
A14: Weitere Werke Other locations | C14: Further plants | D14: Land/Country: | F14: Ort/City: | I14: Mitarbeiter/ Employees:
A16: Datum der Auskunft/Beurteilung Date of assessement | C16: Date of assesment/judgement | D16: Lieferant/ Supplier: | F16: Kübler:
A18: Lieferantenkontakte und Verantwortliche: Supplier contacts and responsible persons
A19: Geschäftsführung Managing directors: | C19: Contract issues: | D19: Name:
D20: Tel.: | G20: E-Mail:
A21: Vertrieb Außendienst External sales: | C21: Contract issues: | D21: Name: | G21: Position:
D22: Tel.: | G22: E-Mail:
A23: Vertrieb Innendienst Internal sales: | C23: Quality issues: | D23: Name: | G23: Position:
D24: Tel.: | G24: E-Mail:
A25: Technik Technology: | C25: Operational issues: | D25: Name: | G25: Position:
D26: Tel.: | G26: E-Mail:
A27: Qualität Quality: | C27: Technical issues: | D27: Name: | G27: Position:
D28: Tel.: | G28: E-Mail:
A29: Selbstauskunft Selfassessement: | C29: Creator of Self assessment: | D29: Name: | G29: Position:
D30: Tel.: | G30: E-Mail:
A33: Kennzahlen des Unternehmens: | D33: Aktuelles Jahr Actual Year | F33: Nächstes Jahr Next Year | I33: Vorjahr previous year
A34: Umsatz (€) Turnover (€)
A35: Auslastung % Capacity utilization %
A36: Exportanteil (%) Export %
A37: In wievielen Schichten arbeitet die Produktion? How many shifts are working in production?
A38: Eigenkapital Equity
A39: Unternehmensergebnis (EBT) Corporate results
A40: Umsatzrendite (Ergebnis/Umsatz) return on sales
A41: Mitarbeiterzahl Gesamt Number of employees
A42: Mitarbeiterzahl Produktion Number of employees production
A43: Mitarbeiterzahl QS Number of employees quality dept.
A44: Mitarbeiterzahl Entwicklung Number of employees R&D
A45: Mitarbeiterzahl Verwaltung Number of employees administration
A46: Krankenstand in % Number of employees`s illness
A49: Allgemeine Auskünfte Generall information:
A50: Welche Sofware ist im Einsatz Software in use: | D50: CAD:
D51: ERP:
D52: CAQ:
A53: Nennen Sie uns Ihre größten 3 Kunden Please state your 3 biggest customers:
A54: Nennen Sie uns Ihre 3 größten europäischen Kunden Please state your 3 biggest european customers:
A55: Gibt es einen Kunden mit mehr als 30% Umsatzanteil? Wenn ja welcher? Is there a customer with more than 30% of turnover?
A56: Welche Meßgeräte sind im Einsatz. Which measuring devices/tools are in use:
A57: Geben Sie uns einen groben Überblick über Ihren Maschinenpark. Give us a rough overview of your machine park.
A58: Durchschnittsalter der Maschinen ? Average age of machines?
A61: Welches Fachpersonal ist in der Fertigung eingesetzt? Which skilled worker are working in production.
A62: Welche Minimum Produktionslosgröße für Serienproduktion haben Sie? Minimum production lot size for serial production
A63: Wie ist die Standardlieferzeit von Mustern- und Serienteilen. How long are the standard delivery times for samples and serial parts? | D63: Muster: Samples: | G63: Serienteile: Serial parts:

Sheet Quality
D2: Selbstauskunft/Bemerkungen Lieferant Selfassessment/Remarks Supplier | F2: Antwort Lieferant Response Supplier | G2: Kübler Beurteilung / Bemerkungen | K2: Bewertung/ Rating
B4: Quality | F4: =((AVERAGE(M14:M20,M23:M28,M31:M35,M38:M41))*100)/10 -> 0.00 | K4: =((AVERAGE(K14:K20,K23:K28,K31:K35,K38:K41))*100)/10 -> 
K6: 10 | M6: Berechnungs hilfe SA
F7: Ja/Yes | K7: 8
F8: Nein/No | K8: 6
F9: NA | K9: 4
K10: 0
K11: nr
A13: 1 | B13: Allgemein / General
A14: 1.1 | B14: Zertifizierung nach ISO 9001:2015 vorhanden? | C14: Supplier is certified according to ISO 9001:2015 | M14: =IF(F14=$F$7,10,IF(F14=$F$8,0,IF(F14=$F$9,"",IF(F14=$F$10,0)))) -> 0
A15: 1.2 | B15: Zertifizierung nach IATF 16949:2016 vorhanden? | C15: Supplier is certified according to IATF 16949:2016 | M15: =IF(F15=$F$7,10,IF(F15=$F$8,0,IF(F15=$F$9,"",IF(F15=$F$10,0)))) -> 0
A16: 1.3 | B16: Zertifizierung nach ATEX vorhanden? | C16: Supplier is certified according to ATEX | M16: 0
A17: 1.5 | B17: Planung für interne Audits vorhanden? | C17: Plan for internal audits avaiable. | M17: 0
A18: 1.6 | B18: Welche Werkzeuge der Qualitätssicherung sind in Gebrauch (wenn ja welche. Z.B. FMEA, 8 D Report, QRK, Ishikawa..)? | C18: Quality tools are in use. (If yes, which eg FMEA, 8 D Report, Q-charts, Ishikawa...) | M18: 0
A19: 1.7 | B19: Die Kundenzufriedenheit wird regelmäßig ausgewertet und überwacht. | C19: Customer satisfaction is regularly evaluated. | M19: 0
A20: 1.8 | B20: Bereitschaft zum Abschluß einer Qualitätssicherungsvereinbarung ist vorhanden. | C20: Supplier is willing to negotiate a QAA.(Quality Assurance Agreement) | M20: 0
M21: =AVERAGE(M14:M20) -> 0
A22: 2 | B22: Meßmittel / Measuring Equipment
A23: 2.1 | B23: Alle relevanten Prüfungen und Tests können im Haus durchgeführt werden | C23: All relevant inspections and test can be done in house | M23: 0
A24: 2.2 | B24: 3D Meßmaschine und trainierte Mitarbeiter vorhanden | C24: 3 D measuring equipment available and staff trained | M24: 0
A25: 2.4 | B25: Prüf- und Messgeräte werden regelmäßig kalibriert | C25: Test and measuring equipment calibrated | M25: 0
A26: 2.5 | B26: Meßraum ist klimatisiert und Luftfeuchte überwacht | C26: Measuring rooms are temperature and humiditiy monitored | M26: 0
A27: 2.6 | B27: Meßmittelsystemanalyse wird praktiziert (MSA) | C27: Measurement system analysis performed | M27: 0
A28: 2.7 | B28: Kalibrierung der Messmittel wird im Hause durchgeführt | C28: Calibration of the measuring equipment is carried out in house | M28: 0
M29: =AVERAGE(M23:M28) -> 0
A30: 3 | B30: Teile Qualität / Part Quality
A31: 3.1 | B31: Wichtige prozessrelevante Maße werden erfasst, überwacht und ausgewertet. | C31: Important process-relevant measures are recorded, monitored and evaluated. | M31: 0
A32: 3.2 | B32: Werden Fertigungs bzw. Prüfschritte extern vergeben, wenn ja welche? | C32: Are all production- and inspection steps in house? If no, which are outside. | M32: 0
A33: 3.3 | B33: Erstmusterprüfberichte können bereitgestellt werden | C33: First article inspetion reports can be provided
A34: 3.4 | B34: Wareneingangsprüfung ist installiert? | C34: Incoming goods inspection installed
A35: 3.5 | B35: Mögliche Schwachstellen bei qualitätsrelevanten Prozessen werden im Vorfeld untersucht. (FMEA, APQP Advanced Product Quality Planning) | C35: FMEA for important quality-relevant processes are carried out. (FMEA, APQP Advanced Product Quality Planning) | M35: 0
M36: =AVERAGE(M31:M35) -> 0
A37: 4 | B37: Reklamationsprozeß / NCM Process
A38: 4.1 | B38: Schlechte Ware ist markiert und separat gelagert | C38: NCM material marked clearly and stored at separate stock | M38: 0
A39: 4.2 | B39: Prozess zur Kundenreklamation vorhanden | C39: Process Customer claims defined | M39: 0
A40: 4.3 | B40: 8 D Methode installiert | C40: 8 D method is practiced | M40: 0
A41: 4.5 | B41: Rücksendeprozess nur über RMA (Return Material Authorization) Nummer möglich. | C41: Return of NCM only possible via RMA (Return Material Authorization) number. | M41: 0
M42: =AVERAGE(M38:M40) -> 0

Sheet Management
D2: Selbstauskunft/Bemerkungen Lieferant Selfassessment/Remarks Supplier | F2: Antwort Lieferant Response Supplier | G2: Kübler Beurteilung / Bemerkungen | K2: Bewertung/ Rating
B4: Management | F4: =(100*(AVERAGE(M14:M17,M20:M22,M25:M27,M30:M35)/10)) -> 0.00 | K4: =((AVERAGE(K14:K17,K20:K22,K25:K27,K30:K35))*100)/10 -> 
K6: 10 | M6: Berechnungs hilfe SA
F7: Ja/Yes | G7: 10 | K7: 8
F8: Nein/No | K8: 6
F9: NA | K9: 4
K10: 0
K11: nr
A13: 1 | B13: Personal / Human ressources HR
A14: 1.1 | B14: Prozess zur Mitarbeiteraus und- Weiterbildung vorhanden | C14: Process for employees training and edjucation in place | M14: =IF(F14=$F$7,10,IF(F14=$F$8,0,IF(F14=$F$9,"",IF(F14=$F$10,0)))) -> 0
A15: 1.2 | B15: Mitarbeiterzurfiedenheit wird regelmäßig ausgewertet und überwacht | C15: Employeesatisfaction is regularly evaluated | M15: 0
A16: 1.3 | B16: Mitarbeiterfluktuation und Krankenstand wird regelmäßig ausgewertet und überwacht | C16: Employee fluctuation and sick leave is regularly evaluated and monitored | M16: 0
A17: 1.4 | B17: Qualifikationsbedarfe werden regelmäßig ermittelt | C17: Needs of workerqualification determined | M17: 0
M18: =AVERAGE(M14:M17) -> 0
A19: 2 | B19: Business
A20: 2.1 | B20: Produkthaftpflichversicherung vorhanden | C20: Is a supplier a liability insurance in place? | M20: =IF(F20=$F$7,10,IF(F20=$F$8,0,IF(F20=$F$9,"",IF(F20=$F$10,0)))) -> 0
A21: 2.2 | B21: Produktgarantie min. 12 Monate | C21: Product warranty minimum 12 months | M21: 0
A22: 2.3 | B22: Der Lieferant ist bereit, Geschäfte gemäß des lokalen Rechts des Lieferorts zu tätigen | C22: Supplier is willing to do business according to local law of delivery destination. | M22: 0
M23: =AVERAGE(M20:M22) -> 0
A24: 2 | B24: Datensicherung / Backup
A25: 2.1 | B25: Regelmäßige Datensicherung für alle wichtigen Daten (bitte Häufigkeit angeben) | C25: Backup of all relevant data at regular intervals (frequency) | M25: =IF(F25=$F$7,10,IF(F25=$F$8,0,IF(F25=$F$9,"",IF(F25=$F$10,0)))) -> 0
A26: 2.2 | B26: Regelmäßige Datensicherung auf externen Speicherorten | C26: Regular backup to external locations | M26: 0
A27: 2.3 | B27: Backup Daten sind feuersicher gelagert. | C27: Backup data are fire proofed stored | M27: 0
M28: =AVERAGE(M25:M27) -> 0
A29: 3 | B29: Produktionsstandort / Production side
A30: 3.1 | B30: Ist ein Sprinklersystem installiert? | C30: Is a sprinkler system installed at the production area ? | M30: =IF(F30=$F$7,10,IF(F30=$F$8,0,IF(F30=$F$9,"",IF(F30=$F$10,0)))) -> 0
A31: 3.2 | B31: Direkte Verbindung des Feuermeldesystems zur Feuerwehr | C31: Is there a direct alarm line to the fire brigade? | M31: 0
A32: 3.3 | B32: Feuersicheres Lager für Produktionswerkzeuge | C32: Fire-proof storage for production tools | M32: 0
A33: 3.4 | B33: Gab es irgendwelche Brände die letzten Jahre? | C33: Was there any fire in the past years? | M33: 0
A34: 3.5 | B34: Gibt es Risiken bezgl. Naturkatastophen bezgl. Naturkatastrophen. (z.B. Erdbeben, Überschwemmungen, Brände)? | C34: Is there a danger regarding natural desasters. (eg. Earthquake, large scale fire, flood)? | M34: =IF(F34=$F$8,10,IF(F34=$F$7,0,IF(F34=$F$9,"",IF(F34=$F$10,0)))) -> 0
A35: 3.6 | B35: Gibt es einen Notfallplan? | C35: Is there an emergency plan available? | M35: =IF(F35=$F$7,10,IF(F35=$F$8,0,IF(F35=$F$9,"",IF(F35=$F$10,0)))) -> 0
M36: =AVERAGE(M20:M22) -> 0
M37: =AVERAGE(M36,M28,M23,M18) -> 0

Sheet Costs &Logistic
D2: Selbstauskunft/Bemerkungen Lieferant Selfassessment/Remarks Supplier | F2: Antwort Lieferant Response Supplier | G2: Kübler Beurteilung / Bemerkungen | K2: Bewertung/ Rating
B4: Kosten & Logistik / Costs & Logistic | F4: =((AVERAGE(M14:M22,M25:M31))*100)/10 ->  | K4: =(((AVERAGE(K14:K22,K25:K31))*100)/10) -> 
K6: 10 | M6: Berechnungs hilfe SA
F7: Ja/Yes | K7: 8
F8: Nein/No | K8: 6
K9: 4
K10: 0
K11: nr
A13: 1 | B13: Kosten / Costs
A14: 1.2 | B14: Bereitschaft zur offenen Kalkulationen vorhanden? | C14: Willingness to open calculations available? | M14: =IF(F14=$F$7,10,IF(F14=$F$8,0,IF(F14=$F$9,"",IF(F14=$F$10,0)))) -> 
A15: 1.3 | B15: Nachkalkulationen werden regemäßig durchgeführt? | C15: Post-calculations are carried out on a regular basis?
A16: 1.4 | B16: Erfahrung mit Logistikmethoden (z.B. Kanban, Konsignationslager) | C16: Experience with logistic methods eg. Kanban, Consigned Stock
A17: 1.5 | B17: Methoden zur Preisreduzierung sind installiert? | C17: Methods for price reductions are installed?
A18: 1.6 | B18: Lieferantenauswahlprozeß vorhanden? | C18: Supplier selection process available?
A19: 1.7 | B19: Lieferanten Reklamationsprozeß vorhanden? | C19: NCM process to supplier available?
A20: 1.8 | B20: Lieferantenmanagement - und Entwicklungsprozeß vorhanden? | C20: Supplier management process in place?
A21: 1.9 | B21: Risiken bei Lieferanten werden regelmäßig analysiert und bewertet? | C21: Risks at suppliers are regularly analyzed and evaluated?
A22: 1.9 | B22: Sicherheitsbestände für kritische Teile sind definiert? | C22: Safety stock for critical parts defined?
M23: =AVERAGE(M14:M22) -> 
A24: 2 | B24: Logistik / Logistics
A25: 2.1 | B25: Lieferzeiten der Einkaufsteile werden überwacht und gemessen? | C25: Delivery times of the purchased parts are monitored and measured? | M25: =IF(F25=$F$7,10,IF(F25=$F$8,0,IF(F25=$F$9,"",IF(F25=$F$10,0)))) -> 
A26: 2.2 | B26: Rückverfolgbarkeit auf Komponentenebene bzw. bis zur Materialcharge möglich? | C26: Traceability back to component or to the material batch possible?
A27: 2.3 | B27: Fifo ist durchgängig installiert? | C27: FIFO is installed continiously?
A28: 2.4 | B28: Lager ist klimatisiert | C28: Storage areas are air-conditioned
A29: 2.5 | B29: Relevante Lagerflächen sind ESD geschützt | C29: Relevant storage areas are ESD protected
A30: 2.6 | B30: Bereitschaft einen Sicherheitsbestand an (Vor-)Material vorzuhalten | C30: Willingness to provide a safety stock of (pre-) material
A31: 2.7 | B31: Hat der Betrieb über einen längeren Zeitraum eine Betriebsruhe (z.B. Sommer Urlaub)? Wenn ja wann und über welche Dauer? | C31: Is there a longer period were the supplier has vacation or similar? If yes, when and how long?
M32: =AVERAGE(M25:M31) -> 

Sheet Technic
D2: Selbstauskunft/Bemerkungen Lieferant Selfassessment/Remarks Supplier | F2: Antwort Lieferant Response Supplier | G2: Kübler Beurteilung / Bemerkungen | K2: Bewertung/ Rating
B4: Technik / Technic | F4: =(100*(AVERAGE(M14:M24,M27:M32)/10)) -> 0.00 | K4: =((AVERAGE(K14:K24,K27:K32))*100)/10 -> 
K6: 10 | M6: Berechnungs hilfe SA
F7: Ja/Yes | K7: 8
F8: Nein/No | K8: 6
F9: NA | K9: 4
K10: 0
K11: nr
A13: 1 | B13: Produktion / Production
A14: 1.1 | B14: Werden Fertigungs bzw. Prüfschritte extern vergeben, wenn ja welche? | C14: Are all production- and inspection steps in house? If no, which are outside? | M14: =IF(F14=$F$7,10,IF(F14=$F$8,0,IF(F14=$F$9,"",IF(F14=$F$10,0)))) -> 0
A15: 1.2 | B15: Eigener Musterbau vorhanden | C15: Own model shop available | M15: 0
A16: 1.3 | B16: Eigener Werkzeugbau vorhanden | C16: Own tool manufacturing in-house | M16: 0
A17: 1.4 | B17: Werkzeuge feuergeschützt gelagert | C17: Fire-proof tool storage available | M17: 0
A18: 1.5 | B18: Wichtige Verschleiß-und Ersatzteile definiert und vorhanden | C18: Important spare parts are defined and available | M18: 0
A19: 1.6 | B19: Maschinen und Werkzeuge werden regelmäßig gewartet und dokumentiert | C19: Machine and tool maintenance at regular intervals and documented | M19: 0
A20: 1.7 | B20: Relevante Prozessschritte sind ESD geschützt | C20: Production floor and equipment are ESD-protected | M20: 0
A21: 1.8 | B21: 100% Funktionstest bei Baugruppen installiert (z.B. El. Boards und Einzelteile) | C21: 100% Functional test installed on assemblies (e.g., electronic boards and parts) | M21: 0
A22: 1.9 | B22: Automatische optische Inspection vorhanden ( AOI) | C22: AOI avaiable | M22: 0
A23: 1.10 | B23: Produktion ist klimatisiert | C23: Production floors are air-conditioned | M23: 0
A24: 1.11 | B24: Lager ist klimatisiert | C24: Storage areas are air-conditioned | M24: 0
M25: =AVERAGE(M14:M24) -> 0
A26: 2 | B26: Ausstattung / equipment
A27: 2.1 | B27: Granulattrockner vorhanden (bei Kunstofffertigung) | C27: Resin dryers available (Plastic production) | M27: 0
A28: 2.2 | B28: 100% Funktionstest bei Baugruppen installiert (z.B. El. Boards und Einzelteile) | C28: Functional test installed on assemblies (e.g., electronic boards and parts) | M28: 0
A29: 2.3 | B29: Eigene Galvanik vorhanden | C29: Own galvanic coatings available | M29: 0
A30: 2.4 | B30: Eigene Lackiererei vorhanden | C30: Own spray paint shop available | M30: 0
A31: 2.5 | B31: Eigene Pulverbeschichtung vorhanden | C31: Own powder coating line available | M31: 0
A32: 2.6 | B32: Eigene CNC Produktion vorhanden | C32: Own CNC production available | M32: 0
M33: =AVERAGE(M27:M32) -> 0

Sheet Communication
D2: Selbstauskunft/Bemerkungen Lieferant Selfassessment/Remarks Supplier | F2: Antwort Lieferant Response Supplier | G2: Kübler Beurteilung / Bemerkungen | K2: Bewertung/ Rating
B4: Kommunikation / Communication | F4: =100*(AVERAGE(M14:M17,M20:M23,M26:M28))/10 ->  | K4: =((AVERAGE(K14:K17,K20:K23,K26:K28))*100)/10 -> 
K6: 10 | M6: Berechnungs hilfe SA
F7: Ja/Yes | K7: 8
F8: Nein/No | K8: 6
K9: 4
K10: 0
K11: nr
A13: 1 | B13: Allgemein/ General
A14: 1.1 | B14: Wichtige Personen sind per Mobiltelefon erreichbar | C14: Important persons can be reached via mobile phone | M14: =IF(F14=$F$7,10,IF(F14=$F$8,0,IF(F14=$F$9,"",IF(F14=$F$10,0)))) -> 
A15: 1.2 | B15: Kommunikationsmatrixen incl. Vertreter für Kunden vorhanden | C15: Communication matrixes incl. replacement for customers available | M15: =IF(F15=$F$7,10,IF(F15=$F$8,0,IF(F15=$F$9,"",IF(F15=$F$10,0)))) -> 
A16: 1.4 | B16: Desktopsharing und Videochat möglich (z.B. Skype, Teamviewer) | C16: Desktop sharing and video chat possible (E.g. Skype,Teamviewer)
A17: 1.5 | B17: Austausch größerer Dateien über WEB / Cloud möglich | C17: file sharing via WEB / Cloud possible
M18: =AVERAGE(M14:M17) -> 
A19: 2 | B19: Berichte / Reports
A20: 2.1 | B20: Erste Rückantwort auf 8 D Report mit Sofortmaßnahme innerhalb 24 Stunden möglich | C20: First response to 8 D report with containment action possible within 24 hours | M20: =IF(F20=$F$7,10,IF(F20=$F$8,0,IF(F20=$F$9,"",IF(F20=$F$10,0)))) -> 
A21: 2.2 | B21: Fehleranalysereports auf Englisch möglich | C21: Failure analysis reports in English language possible
A22: 2.3 | B22: Signifikante Prozessänderungen werden dem Kunden berichtet. | C22: Significant process changes are reported to customer.
A23: 2.4 | B23: Mögliches Verbesserungspotential wird dem Kunden berichtet. | C23: Potential improvements reported to customer
M24: =AVERAGE(M20:M23) -> 
A25: 3 | B25: Bestellungen / Orders
A26: 3.1 | B26: Liefertreue zum Kunden wird ausgewertet und überwacht | C26: Deliveries to customer are evaluated and monitored.
A27: 3.2 | B27: Angebote können innerhalb von 3 Arbeitstagen geliefert werden | C27: Quotes can be provided within 3 working days
A28: 3.3 | B28: Auftragsbestätigungen mit festem Liefertermin können innerhalb von 3 Arbeitstagen bestätigt werden | C28: Order confirmations with a reliable delivery date can be sent out within 3 business days
A30: 4
A31: 4.1
A32: 4.2
A33: 4.3
A34: 4.4
A35: 4.5
A36: 4.6
A37: 4.7
A38: 4.8
A40: 5
A41: 5.1
A42: 5.2
A43: 5.3
A44: 5.4
A45: 5.5
A46: 5.6
A47: 5.7
A48: 5.8
A50: 6
A51: 5.1
A52: 5.2
A53: 5.3
A54: 5.4
A55: 5.5
A56: 5.6
A57: 5.7
A58: 5.8
M60: =AVERAGE(M26:M28) -> 

Sheet Environment&Social
D2: Selbstauskunft/Bemerkungen Lieferant Selfassessment/Remarks Supplier | F2: Antwort Lieferant Response Supplier | G2: Kübler Beurteilung / Bemerkungen | K2: Bewertung/ Rating
B4: Umwelt&Soziales / Environment&Social | F4: =((AVERAGE(M14:M20,M23:M25,M28:M31)*100)/10) ->  | K4: =(((AVERAGE(K14:K20,K23:K25,K28:K31))*100)/10) -> 
K6: 10 | M6: Berechnungs hilfe SA
F7: Ja/Yes | K7: 8
F8: Nein/No | K8: 6
K9: 4
K10: 0
K11: nr
A13: 1 | B13: Umwelt/Environment
A14: 1.1 | B14: Umweltschutz verantwortliche Person benannt | C14: Environment responsible person defined | M14: =IF(F14=$F$7,10,IF(F14=$F$8,0,IF(F14=$F$9,"",IF(F14=$F$10,0)))) -> 
A15: 1.2 | B15: Unternehmen gemäß ISO 14001 oder ähnlich zertifiziert | C15: Certified regarding ISO 140001 or similar | M15: =IF(F15=$F$7,10,IF(F15=$F$8,0,IF(F15=$F$9,"",IF(F15=$F$10,0)))) -> 
A16: 1.3 | B16: Ist der Einfluß des Unternehmens auf die Umwelt bekannt (Verschmutzung, Abwasser..) | C16: Is the impact of the company's activities on the environment known (pollution, waste water...)
A17: 1.4 | B17: Unternehmen gemäß DIN EN ISO 50001 oder ähnliches zertifiziert | C17: Certified regarding DIN EN ISO 50001 or similar
A18: 1.5 | B18: Maßnahmen zur Senkung des Energieverbrauchs werden definiert und überwacht | C18: Measures to decrease the environmental impact are defined and monitored
A19: 1.6 | B19: Sind die REACH und RoHS Richtlinien und Verpflichtungen bekannt und werden diese eingehalten | C19: Are the obligations of the REACH and RoHS standard known and respected
A20: 1.7 | B20: Gibt es einen REACH und RoHS Verantwortlichen | C20: REACH and RoHS responsible person defined
M21: =AVERAGE(M14:M20) -> 
A22: 2 | B22: Soziales/Social
A23: 2.1 | B23: Mindestalter für Beschäftigte älter 15 Jahre. | C23: No worker younger than 15 years | M23: =IF(F23=$F$7,10,IF(F23=$F$8,0,IF(F23=$F$9,"",IF(F23=$F$10,0)))) -> 
A24: 2.2 | B24: Gesetzliche Mindestlöhne werden eingehalten und Überstunden werden entlohnt | C24: All wages are over legal minimum and all overtimes get paid
A25: 2.3 | B25: Werden soziale Projekte unterstützt | C25: Support of social projects
M26: =AVERAGE(M23:M25) -> 
A27: 3 | B27: Arbeitssicherheit/Worksafety
A28: 3.1 | B28: Gibt es einen Sicherheitsbeautragten | C28: Is a dedicated person responsible for work safety?
A29: 3.2 | B29: Unternehmen gemäß OSHAS 18001 oder ähnliches Zertifiziert | C29: Certified regarding OSHAS 18001 or similar
A30: 3.3 | B30: Gab es die letzten 3 Jahre einen Arbeitssicherheitsunfall | C30: Was there a work safety accident the past 3 years
A31: 3.3 | B31: Sind Gefahrenstellen ausreichend beschildert | C31: Are dangerous spots signposted?
M32: =AVERAGE(M28:M31) -> 

Sheet Auswertung SARA (hidden)
A1: Lieferantenbewertung / Supplier Scorecard
A3: Name Lieferant / Supplier Name: | C3: ='Overview & Manual'!C9:D9 -> 0
A4: Erstellt von: / Completed by:
A5: Datum / Date:
C7: Selbstauskunft Lieferant Selfassessement Supplier | D7: Bewertung KüblerSelbstauskunft Lieferant Ziel 80% Rating Kübler Selfassessement Supplier Target 80% | E7: Jährliche Performance Yearly Performance | F7: Target
A8: Management Management | C8: =Management!F4 -> 0.00 | D8: =Management!K4 ->  | E8: =S38 -> 0.00 | F8: 80.00
A9: Technologie Technologie | C9: =Technic!F4 -> 0.00 | D9: =Technic!K4 ->  | E9: =S47 -> 0.00 | F9: 80.00
A10: Qualität Quality | C10: =Quality!F4 -> 0.00 | D10: =Quality!K4 ->  | E10: =S54 -> 0.00 | F10: 80.00
A11: Kommunikation Communication | C11: =Communication!F4 ->  | D11: =Communication!K4 ->  | E11: =S59 -> 0.00 | F11: 80.00
A12: Kosten&Logistik Costs&Logistic | C12: ='Costs &Logistic'!F4 ->  | D12: ='Costs &Logistic'!K4 ->  | E12: =#REF! ->  | F12: 80.00
A13: Umwelt&Soziales Environment&Social | C13: ='Environment&Social'!F4 ->  | D13: ='Environment&Social'!K4 ->  | E13: =S69 -> 0.00 | F13: 80.00
A14: Gesamt Total | C14: =AVERAGE(C8:C13) ->  | E14: =AVERAGE(E8:E13) ->  | F14: =AVERAGE(F8:F13) -> 80.00
A16: Ergebnis Jahr / Year | D16: 2018 | G16: =E14 -> 
A22: Bewertungsmatrix
A23: 10 = Vollständig erfüllt / Exzellent | D23: 10 | F23: 10
A24: 8 = Überwiegend erfüllt, geringfügige Abweichungen (Verbesserungspotenzial) | D24: 8
A25: 6 = Teilweise erfüllt, größere Abweichungen | D25: 6
A26: 4 = Unzureichend erfüllt, schwerwiegende Abweichung | D26: 4
A27: 0 = Nicht erfüllt, nicht existent - inakzeptabel | D27: 0 | F27: 0
A28: nr = nicht relevant / nicht bewertet | D28: nr
A30: Jährliche Lieferantenbewertung / Annual Supplier Evaluation | H30: Kübler | M30: Lieferant supplier | Q30: Kübler
H32: Bewertung / Rating | I32: Maßnahme Lieferant notwendig? Action Supplier nessecary? | J32: Bemerkungen Kübler rating / remarks | M32: Maßnahme Action | O32: Zieldatum Target Date | P32: Verantwortlicher / responsible Person | Q32: Bemerkung Remarks | R32: Erledigt Done | S32: Gewicht- tung in % | T32: Anteil an Sara | U32: erreichte Punktzahl | V32: Ergebnis x Gewichtung
A34: 1 | D34: Management
A35: 1.1 | B35: Lieferant ist flexibel im Falle von unerwarteten Situationen z.B. kurzfristige Lieferungen, Ersatzlieferungen und unterstützt Fa. Kübler | E35: Supplier is flexible in case of unexpected situations e.g. short-term deliveries, replacement deliveries and supports the company Kübler | H35: 10 | I35: =IF(H35<10,"ja/yes","") ->  | S35: 60 | T35: 10 | U35: =H35*S35 -> 600 | V35: =U38*0.1 -> 100
A36: 1.2 | B36: Der Lieferant respektiert Kübler als geschätzten Kunden | E36: The supplier respects Kübler as valued customer | H36: 10 | I36: =IF(H36<10,"ja/yes","") ->  | S36: 20 | U36: =H36*S36 -> 200
A37: 1.3 | B37: Lieferant war keinen Katastophen wie Bränden, Überschwemmungen, Erdbeben ect. ausgesetzt. | E37: No catastophes like fires, flood, earth quake ect. at supplier | H37: 10 | S37: 20 | U37: =H37*S37 -> 200
U38: =SUM(U35:U37) -> 1000
A39: 2 | D39: Technologie/Technology
A40: 2.1 | B40: Keine Lieferverzögerungen durch fehlende Fertigungskapazität | E40: No delivery delays due to lack of production capacity | H40: 10 | I40: =IF(H40<10,"ja/yes","") ->  | S40: 20 | T40: 30 | U40: =H40*20 -> 200 | V40: =U46*0.3 -> 300
A41: 2.2 | B41: Maschinenpark/Fertigungstechnologien erfüllt die Erwartungen von Fa. Kübler | E41: Machinery/production technologies meets the expectations of Kübler | H41: 10 | S41: 20 | U41: =H41*S41 -> 200
A42: 2.3 | B42: Gespächspartner sind in der Lage technisch zu unterstützen | E42: Partners are able to provide technical support | H42: 10 | S42: 15 | U42: =H42*S42 -> 150
A43: 2.4 | B43: Lieferant unterstützt Kübler während der Entwicklung | E43: Supplier supports Kübler during development | H43: 10 | S43: 15 | U43: =H43*S43 -> 150
A44: 2.5 | B44: Lieferant informiert Fa. Kübler rechtzeitig über Prozeßänderungen | E44: Supplier informs Kübler about process changes | H44: 10 | S44: 10 | U44: =H44*S44 -> 100
A45: 2.6 | B45: Änderungen werden in der vereinbarten Zeit eingeführt | E45: Product changes are done in the agreed time | H45: 10 | S45: 20 | U45: =H45*S45 -> 200
U46: =SUM(U40:U45) -> 1000
A48: 3 | D48: Qualität/Quality
A49: 3.1 | B49: ISO Certificate Iso 9001 / IATF 16949 gültig | E49: ISO Certificate / IATF 16949 valid | H49: 0 | I49: =IF(H49<10,"ja/yes","") -> ja/yes | S49: 15 | T49: 30 | U49: =H49*S49 -> 0 | V49: =U54*0.3 -> 0
A50: 3.2 | B50: 8D Reporte sind effektiv (keine Wiederholfehler) | E50: 8D Reports are effective (no recurrence) | H50: 0 | I50: ja/yes | S50: 20 | U50: =H50*S50 -> 0
A51: 3.3 | B51: Qualitätsprobleme in vereinbarter Zeit abgestellt | E51: Qualitiy problems are closed in the agreed time | H51: 0 | I51: ja/yes | S51: 20 | U51: =H51*S51 -> 0
A52: 3.4 | B52: Keine Produktionsausfälle wegen Qualitätsproblemen | E52: No production stops at Kübler caused by quality problems | H52: 0 | I52: ja/yes | S52: 30 | U52: =H52*S52 -> 0
A53: 3.5 | B53: Lieferant ist proaktiv um die Qualitätsziele zu erreichen | E53: Supplier is proactive to meet the quality targets | H53: 0 | I53: ja/yes | S53: 15 | U53: =H53*S53 -> 0
U54: =SUM(U49:U53) -> 0
A55: 4 | D55: Kommunikation/Communication
A56: 4.1 | B56: Auftragsbestätigungen werden innerhalb 3 Arbeitstage an Kübler gesendet. | E56: Orderconfirmations arrive within 3 buisness days | H56: 10 | I56: =IF(H56<10,"ja/yes","") ->  | S56: 33 | T56: 10 | U56: =H56*S56 -> 330 | V56: =U59*0.1 -> 99
A57: 4.2 | B57: Lieferant antwortet auf auf alle anfallenden Fragen (Technik, Lieferzeit,Preise…) innerhalb einer angemessenen Zeit. | E57: Supplier answers to all questions that may occur (technology, delivery time, price ...) within a reasonable time. | H57: 10 | S57: 33 | U57: =H57*S57 -> 330
A58: 4.3 | B58: Kontaktpersonen sind gut zu erreichen | E58: Partners are are easy to reach | H58: 10 | S58: 33 | U58: =H58*S58 -> 330
U59: =SUM(U56:U58) -> 990
A60: 5 | D60: Kosten&Logistik/Costs&Logistics
A61: 5.1 | B61: Bonitätsindex | E61: creditworthiness | H61: 10 | I61: =IF(H61<10,"ja/yes","") ->  | S61: 50 | T61: 10 | U61: =H61*S61 -> 500 | V61: =U63*0.1 -> 100
A62: 5.2 | B62: Bonitätsindex hat sich verschlechtert | E62: creditworthiness decreased | H62: 10 | S62: 50 | U62: =H62*S62 -> 500
U63: =SUM(U61:U62) -> 1000
A65: 6 | D65: Umwelt&Soziales
A66: 5.1 | B66: Gab es REACH Abweichungen im letzten Jahr | E66: Any REACH findings the past year | H66: 10 | I66: =IF(H66<10,"ja/yes","") ->  | S66: 40 | T66: 10 | U66: =H66*S66 -> 400 | V66: =U69*0.1 -> 100
A67: 5.2 | B67: Neue Auflagen von Externen (z.B. Versicherungen, Behörden, Kunden) | E67: Any new restrictions of a third party | H67: 10 | S67: 30 | U67: =H67*S67 -> 300
A68: 5.3 | B68: Arbeitsunfälle im letzten Jahr | E68: Any big work accidents the past year | H68: 10 | S68: 30 | U68: =H68*S68 -> 300
U69: =SUM(U64:U68) -> 1000
V70: Erreichte Punktzahl | W70: Erreichte % Zahl
R71: Ergebnis SARA SARA Result | V71: =SUM(V35:V70) -> 699 | W71: =V71*100/V72 -> 70
R72: max mögliche Punkte | V72: 999

Sheet Scorecard (hidden)
B1: Lieferant | F1: Datum
B2: ='Auswertung SARA'!C3:D3 -> 
A6: Ergebnis der jährlichen Lieferantenbewertung der Firma Fritz Kübler GmbH
D8: Ziel in % | E8: Ergebnis in % | F8: Ergebnis
C9: Liefertreue (DKZ) | D9: 100 | E9: 44 | F9: =IF(E9<=70,"Anforderungen nicht erfüllt",IF(E9<=85,"Anforderungen teilweise erfüllt","Anforderungen erfüllt")) -> Anforderungen nicht erfüllt
C10: Reklamationsquote (QKZ) | D10: 100 | E10: 74 | F10: =IF(E10<=70,"Anforderungen nicht erfüllt",IF(E10<=85,"Anforderungen teilweise erfüllt","Anforderungen erfüllt")) -> Anforderungen teilweise erfüllt
C11: Kosten | D11: 100 | E11: 88 | F11: =IF(E11<=70,"Anforderungen nicht erfüllt",IF(E11<=85,"Anforderungen teilweise erfüllt","Anforderungen erfüllt")) -> Anforderungen erfüllt
C12: Auditergebnis (SKZ) | D12: 100 | E12: 67 | F12: =IF(E12<=70,"Anforderungen nicht erfüllt",IF(E12<=85,"Anforderungen teilweise erfüllt","Anforderungen erfüllt")) -> Anforderungen nicht erfüllt
C13: SARA* Ergebnis | D13: 100 | E13: ='Auswertung SARA'!W71 -> 70 | F13: =IF(E13<=70,"Anforderungen nicht erfüllt",IF(E13<=85,"Anforderungen teilweise erfüllt","Anforderungen erfüllt")) -> Anforderungen nicht erfüllt

Sheet Regeln (hidden)
A1: Lieferantenqualifizierung Regeln zur Lenkung vom Dokument
A3: 1. Dokumentvorlage wurde abgelegt unter:
A4: X:\VORLAGEN\MSOFFICE\SCM
A7: 2. Nach und während der Bearbeitung wird das Dokument je Lieferant abgelegt unter:
A8: P:\SCM\30_Lieferanten\"Lieferantname"\02_Standards
A11: 3. Dokument wird: a) von KD (SCM/SCM-QM) vorbereitet b) Tabellenblatt Yearly Result, Regeln und Revision werden für die Selbstauskunft ausgeblendet.(Scorecard wird erst zur jährlichen Bewertung wieder eingeblendet). Die einzelnen Blattschutze müssen aktiviert sein. b) von Lieferant ausgefüllt und per E-Mail in Excel-Format an KÜBLER (SCM/SCM-QM) übermittelt;
A13: Bewertung (nach VDA-Logik): 10 Punkte: Technische Vorgaben zu Produkt und Prozess werden eingehalten. 8 Punkte: Prozessschwächen sind vorhanden, werden jedoch sofort erkannt und beseitigt. 6 Punkte: Prozessstörungen, Produkte können nicht prozesssicher hergestellt werden. 4 Punkte: Produkte können nicht prozesssicher hergestellt werden. Prozessfähigkeit nicht erreicht. 0 Punkte: Maschinen, Anlagen ungeeignet. Reklamationen und Feldausfälle sind zu erwarten. nr: nicht relevant => kein Einfluss auf die Bewertung

Sheet Revision (hidden)
A1: Rev. | B1: Datum | C1: wer | D1: Änderung/Ergänzung
A2: 01. | B2: 2018-08-07 | C2: ahu | D2: Erstellen des Dokuments
A3: 02. | B3: 2018-12-14 | C3: ahu | D3: Gewichtung und Formatierung
A4: 03. | B4: 2019-02-05 | C4: ahu | D4: Berechnung der Bewertung Kübler.
A5: 04. | B5: 2019-03-13 | C5: ahu | D5: Druckbereiche angelegt/angepasst
A6: 05 | B6: 2018-04-16 | C6: ahu | D6: Redaktionelle Anpassungen
